[Event "Klubbmästerskap 2025 Tisdag"]
[Site "Linköping, Sweden"]
[Date "2025.04.08"]
[Round "9.6"]
[White "Gustavsson, Rolf"]
[Black "Modéer, Björn"]
[Result "0-1"]
[TimeControl "90 min + 30 sec/move"]
[WhiteElo "1695"]
[BlackElo "1700"]

1. d4 {[%clk 01:30:57]} {[%emt 00:00:03]} d5 {[%clk 01:30:43]} {[%emt
00:00:17]} 2. Bg5 {[%clk 01:31:16]} {[%emt 00:00:11]} c6 {[%clk 01:30:54]}
{[%emt 00:00:19]} 3. e3 {[%clk 01:31:04]} {[%emt 00:00:41]} Bf5 {[%clk
01:30:59]} {[%emt 00:00:25]} 4. Nf3 {[%clk 01:29:52]} {[%emt 00:01:43]} Qb6
{[%clk 01:28:18]} {[%emt 00:03:11]} 5. Qc1 {[%clk 01:28:32]} {[%emt 00:01:49]}
h6 {[%clk 01:27:51]} {[%emt 00:00:58]} 6. Bf4 {[%clk 01:27:54]} {[%emt
00:01:07]} Nf6 {[%clk 01:27:23]} {[%emt 00:00:58]} 7. Nbd2 {[%clk 01:23:54]}
{[%emt 00:04:29]} Nbd7 {[%clk 01:25:49]} {[%emt 00:02:05]} 8. h3 {[%clk
01:22:59]} {[%emt 00:01:26]} Rc8 {[%clk 01:25:02]} {[%emt 00:01:17]} 9. Be2
{[%clk 01:20:13]} {[%emt 00:03:16]} c5 {[%clk 01:23:19]} {[%emt 00:02:14]} 10.
c3 {[%clk 01:18:52]} {[%emt 00:01:51]} e6 {[%clk 01:22:54]} {[%emt 00:00:54]}
11. a4 {[%clk 01:04:11]} {[%emt 00:15:11]} Bd6 {[%clk 01:17:30]} {[%emt
00:05:54]} 12. dxc5 {[%clk 00:59:12]} {[%emt 00:05:29]} Bxc5 {[%clk 01:14:05]}
{[%emt 00:03:55]} 13. a5 {[%clk 00:52:39]} {[%emt 00:07:03]} Qc6 {[%clk
01:12:33]} {[%emt 00:02:01]} 14. O-O {[%clk 00:48:33]} {[%emt 00:04:36]} Bd6
{[%clk 01:11:47]} {[%emt 00:01:17]} 15. Bxd6 {[%clk 00:48:00]} {[%emt
00:01:02]} Qxd6 {[%clk 01:12:06]} {[%emt 00:00:12]} 16. Nd4 {[%clk 00:44:52]}
{[%emt 00:03:38]} Bg6 {[%clk 01:08:26]} {[%emt 00:04:10]} 17. Nb5 {[%clk
00:43:28]} {[%emt 00:01:54]} Qb8 {[%clk 01:08:23]} {[%emt 00:00:33]} 18. Qd1
{[%clk 00:42:20]} {[%emt 00:01:37]} O-O {[%clk 01:07:39]} {[%emt 00:01:15]} 19.
Nf3 {[%clk 00:41:39]} {[%emt 00:01:10]} a6 {[%clk 01:07:14]} {[%emt 00:00:55]}
20. Nbd4 {[%clk 00:40:32]} {[%emt 00:01:37]} Ne4 {[%clk 01:05:37]} {[%emt
00:02:08]} 21. c4 {[%clk 00:33:31]} {[%emt 00:07:32]} Ndf6 {[%clk 01:02:48]}
{[%emt 00:03:17]} 22. cxd5 {[%clk 00:32:46]} {[%emt 00:01:16]} Nxd5 {[%clk
01:01:58]} {[%emt 00:01:20]} 23. Bd3 {[%clk 00:26:24]} {[%emt 00:06:52]} Qd6
{[%clk 00:57:40]} {[%emt 00:04:48]} 24. Bxe4 {[%clk 00:25:45]} {[%emt
00:01:09]} Bxe4 {[%clk 00:57:55]} {[%emt 00:00:15]} 25. Nd2 {[%clk 00:23:46]}
{[%emt 00:02:29]} Bd3 {[%clk 00:56:31]} {[%emt 00:01:52]} 26. Re1 {[%clk
00:23:15]} {[%emt 00:01:03]} Rc7 {[%clk 00:53:59]} {[%emt 00:03:03]} 27. e4
{[%clk 00:16:39]} {[%emt 00:07:05]} Nb4 {[%clk 00:51:06]} {[%emt 00:03:23]} 28.
N2f3 {[%clk 00:14:18]} {[%emt 00:02:51]} Rc4 {[%clk 00:44:52]} {[%emt
00:06:45]} 29. Ra4 {[%clk 00:09:53]} {[%emt 00:04:55]} Rxd4 {[%clk 00:22:33]}
{[%emt 00:22:48]} 30. Nxd4 {[%clk 00:10:04]} {[%emt 00:00:19]} Qxd4 {[%clk
00:22:26]} {[%emt 00:00:36]} 31. Rxb4 {[%clk 00:10:21]} {[%emt 00:00:14]} Qxb4
{[%clk 00:22:33]} {[%emt 00:00:23]} 32. Qxd3 {[%clk 00:10:41]} {[%emt
00:00:11]} Qxe1+ {[%clk 00:22:49]} {[%emt 00:00:14]} 0-1

[Event "Klubbmästerskap 2025 Tisdag"]
[Site "Linköping, Sweden"]
[Date "2025.04.08"]
[Round "9.7"]
[White "Jakobsson, Leif"]
[Black "Ivarsson, Simon"]
[Result "1-0"]
[TimeControl "90 min + 30 sec/move"]
[WhiteElo "1714"]
[BlackElo "1771"]

1. e4 {[%clk 01:30:46]} {[%emt 00:00:12]} c5 {[%clk 01:30:34]} {[%emt
00:00:29]} 2. Nc3 {[%clk 01:30:50]} {[%emt 00:00:25]} Nc6 {[%clk 01:30:40]}
{[%emt 00:00:25]} 3. Bc4 {[%clk 01:30:00]} {[%emt 00:01:19]} e6 {[%clk
01:30:41]} {[%emt 00:00:28]} 4. Nf3 {[%clk 01:27:26]} {[%emt 00:03:05]} a6
{[%clk 01:30:23]} {[%emt 00:00:49]} 5. a4 {[%clk 01:27:03]} {[%emt 00:00:51]}
b6 {[%clk 01:30:42]} {[%emt 00:00:12]} 6. O-O {[%clk 01:24:48]} {[%emt
00:02:45]} Qc7 {[%clk 01:30:17]} {[%emt 00:00:54]} 7. Ba2 {[%clk 01:18:57]}
{[%emt 00:06:21]} Bb7 {[%clk 01:30:21]} {[%emt 00:00:26]} 8. d4 {[%clk
01:17:53]} {[%emt 00:01:34]} cxd4 {[%clk 01:29:19]} {[%emt 00:01:33]} 9. Nxd4
{[%clk 01:17:53]} {[%emt 00:00:30]} Bc5 {[%clk 01:29:22]} {[%emt 00:00:26]} 10.
Be3 {[%clk 01:17:35]} {[%emt 00:00:48]} Nge7 {[%clk 01:23:26]} {[%emt
00:06:25]} 11. Nxc6 {[%clk 01:15:35]} {[%emt 00:02:31]} Qxc6 {[%clk 01:19:21]}
{[%emt 00:04:36]} 12. Bxc5 {[%clk 01:12:26]} {[%emt 00:03:38]} bxc5 {[%clk
01:19:07]} {[%emt 00:00:45]} 13. Qg4 {[%clk 01:09:09]} {[%emt 00:03:45]} O-O
{[%clk 01:18:06]} {[%emt 00:01:32]} 14. Rad1 {[%clk 01:07:34]} {[%emt
00:02:04]} d6 {[%clk 01:14:56]} {[%emt 00:03:40]} 15. Rd3 {[%clk 01:05:34]}
{[%emt 00:02:30]} c4 {[%clk 01:13:15]} {[%emt 00:02:13]} 16. Rg3 {[%clk
01:03:05]} {[%emt 00:02:58]} g6 {[%clk 01:13:21]} {[%emt 00:00:24]} 17. Qh4
{[%clk 00:50:15]} {[%emt 00:13:18]} Rae8 {[%clk 01:12:45]} {[%emt 00:01:08]} 18.
Rh3 {[%clk 00:48:28]} {[%emt 00:02:16]} h5 {[%clk 01:11:10]} {[%emt 00:02:06]}
19. g4 {[%clk 00:45:00]} {[%emt 00:03:58]} Kg7 {[%clk 01:07:15]} {[%emt
00:04:25]} 20. gxh5 {[%clk 00:41:06]} {[%emt 00:04:24]} Rh8 {[%clk 01:07:03]}
{[%emt 00:00:43]} 21. h6+ {[%clk 00:38:55]} {[%emt 00:02:39]} Kh7 {[%clk
01:05:07]} {[%emt 00:02:28]} 22. Qf6 {[%clk 00:38:20]} {[%emt 00:01:02]} Rhg8
{[%clk 01:03:48]} {[%emt 00:01:52]} 23. Qxf7+ {[%clk 00:36:38]} {[%emt
00:02:11]} Kh8 {[%clk 01:03:48]} {[%emt 00:00:30]} 24. Qxe6 {[%clk 00:30:33]}
{[%emt 00:06:35]} Rgf8 {[%clk 00:58:24]} {[%emt 00:05:54]} 25. Qxc4 {[%clk
00:24:51]} {[%emt 00:06:13]} Rf4 {[%clk 00:55:04]} {[%emt 00:03:50]} 26. Qd4+
{[%clk 00:24:08]} {[%emt 00:01:13]} 1-0

[Event "Klubbmästerskap 2025 Tisdag"]
[Site "Linköping, Sweden"]
[Date "2025.04.08"]
[Round "9.8"]
[White "Andersson, Albin"]
[Black "Tonkin, Archie"]
[Result "1-0"]
[TimeControl "90 min + 30 sec/move"]
[WhiteElo "1614"]
[BlackElo "1657"]

1. e4 {[%clk 01:30:53]} {[%emt 00:00:07]} c6 {[%clk 01:30:49]} {[%emt
00:00:11]} 2. d4 {[%clk 01:31:15]} {[%emt 00:00:08]} d5 {[%clk 01:30:57]}
{[%emt 00:00:23]} 3. e5 {[%clk 01:31:25]} {[%emt 00:00:19]} e6 {[%clk
01:30:42]} {[%emt 00:00:44]} 4. Nf3 {[%clk 01:31:36]} {[%emt 00:00:19]} h6
{[%clk 01:30:27]} {[%emt 00:00:46]} 5. Bd3 {[%clk 01:30:56]} {[%emt 00:01:11]}
c5 {[%clk 01:30:07]} {[%emt 00:00:49]} 6. c3 {[%clk 01:30:49]} {[%emt
00:00:37]} c4 {[%clk 01:30:26]} {[%emt 00:00:11]} 7. Bc2 {[%clk 01:30:28]}
{[%emt 00:00:51]} Nc6 {[%clk 01:29:47]} {[%emt 00:01:09]} 8. Bf4 {[%clk
01:26:56]} {[%emt 00:04:02]} Nge7 {[%clk 01:28:25]} {[%emt 00:01:51]} 9. Nbd2
{[%clk 01:21:12]} {[%emt 00:06:14]} g6 {[%clk 01:28:45]} {[%emt 00:00:10]} 10.
Nf1 {[%clk 01:15:07]} {[%emt 00:06:36]} Nf5 {[%clk 01:28:20]} {[%emt 00:00:55]}
11. h4 {[%clk 01:08:01]} {[%emt 00:07:35]} b5 {[%clk 01:25:12]} {[%emt
00:03:38]} 12. Qd2 {[%clk 01:03:35]} {[%emt 00:04:56]} Bd7 {[%clk 01:19:06]}
{[%emt 00:06:37]} 13. Ne3 {[%clk 00:58:29]} {[%emt 00:05:36]} Nxe3 {[%clk
01:16:46]} {[%emt 00:02:48]} 14. Qxe3 {[%clk 00:57:47]} {[%emt 00:01:13]} Ne7
{[%clk 01:16:53]} {[%emt 00:00:24]} 15. g4 {[%clk 00:53:23]} {[%emt 00:04:54]}
Bg7 {[%clk 01:14:53]} {[%emt 00:02:30]} 16. Ke2 {[%clk 00:46:18]} {[%emt
00:07:35]} Qb6 {[%clk 01:09:16]} {[%emt 00:06:07]} 17. Rhb1 {[%clk 00:39:29]}
{[%emt 00:07:19]} Ng8 {[%clk 01:02:30]} {[%emt 00:07:16]} 18. h5 {[%clk
00:34:05]} {[%emt 00:05:54]} g5 {[%clk 01:01:45]} {[%emt 00:01:15]} 19. Bg3
{[%clk 00:33:48]} {[%emt 00:00:47]} Qd8 {[%clk 00:57:50]} {[%emt 00:04:25]} 20.
Nh2 {[%clk 00:32:53]} {[%emt 00:01:25]} Bf8 {[%clk 00:55:17]} {[%emt 00:03:03]}
21. Rf1 {[%clk 00:30:40]} {[%emt 00:02:43]} Be7 {[%clk 00:50:10]} {[%emt
00:05:36]} 22. f4 {[%clk 00:29:17]} {[%emt 00:01:54]} Kf8 {[%clk 00:45:46]}
{[%emt 00:04:55]} 23. fxg5 {[%clk 00:24:53]} {[%emt 00:04:54]} Bxg5 {[%clk
00:42:17]} {[%emt 00:03:58]} 24. Qf3 {[%clk 00:22:22]} {[%emt 00:03:02]} Be8
{[%clk 00:35:03]} {[%emt 00:07:44]} 25. Rf2 {[%clk 00:16:44]} {[%emt 00:06:08]}
Ke7 {[%clk 00:25:42]} {[%emt 00:09:50]} 26. a4 {[%clk 00:12:41]} {[%emt
00:04:33]} a6 {[%clk 00:24:27]} {[%emt 00:01:46]} 27. Rff1 {[%clk 00:12:16]}
{[%emt 00:00:55]} Kd7 {[%clk 00:22:47]} {[%emt 00:02:11]} 28. axb5 {[%clk
00:10:04]} {[%emt 00:02:42]} axb5 {[%clk 00:22:49]} {[%emt 00:00:27]} 29. Qf2
{[%clk 00:09:37]} {[%emt 00:00:56]} Kc7 {[%clk 00:20:19]} {[%emt 00:03:00]} 30.
Nf3 {[%clk 00:08:34]} {[%emt 00:01:33]} Rxa1 {[%clk 00:19:30]} {[%emt
00:01:18]} 31. Rxa1 {[%clk 00:08:56]} {[%emt 00:00:09]} Kb7 {[%clk 00:19:47]}
{[%emt 00:00:12]} 32. Qf1 {[%clk 00:08:44]} {[%emt 00:00:43]} Ne7 {[%clk
00:19:16]} {[%emt 00:01:01]} 33. Nxg5 {[%clk 00:08:26]} {[%emt 00:00:48]} hxg5
{[%clk 00:19:18]} {[%emt 00:00:28]} 34. Qf6 {[%clk 00:06:50]} {[%emt 00:02:06]}
Rf8 {[%clk 00:16:21]} {[%emt 00:03:27]} 35. Qxg5 {[%clk 00:06:10]} {[%emt
00:01:10]} Rg8 {[%clk 00:15:59]} {[%emt 00:00:51]} 36. Qf4 {[%clk 00:05:39]}
{[%emt 00:01:03]} Nc6 {[%clk 00:16:14]} {[%emt 00:00:14]} 37. Rh1 {[%clk
00:05:23]} {[%emt 00:00:45]} Qg5 {[%clk 00:15:14]} {[%emt 00:01:31]} 38. Qxg5
{[%clk 00:04:38]} {[%emt 00:01:16]} Rxg5 {[%clk 00:15:38]} {[%emt 00:00:05]} 39.
h6 {[%clk 00:04:49]} {[%emt 00:00:20]} Rg8 {[%clk 00:14:40]} {[%emt 00:01:27]}
40. Bh4 {[%clk 00:04:55]} {[%emt 00:00:24]} Rxg4 {[%clk 00:12:43]} {[%emt
00:02:27]} 41. h7 {[%clk 00:04:49]} {[%emt 00:00:36]} Rg7 {[%clk 00:10:59]}
{[%emt 00:02:13]} 42. h8=Q {[%emt 00:00:31]} 1-0

[Event "Klubbmästerskap 2025 Tisdag"]
[Site "Linköping, Sweden"]
[Date "2025.04.08"]
[Round "9.13"]
[White "Qwarfort, Fredrik"]
[Black "Stefanovic, Dragan 1958"]
[Result "1/2-1/2"]
[TimeControl "90 min + 30 sec/move"]
[WhiteElo "1826"]
[BlackElo "1791"]

1. d4 {[%clk 01:30:58]} {[%emt 00:00:02]} Nf6 {[%clk 01:30:46]} {[%emt
00:00:14]} 2. c4 {[%clk 01:31:21]} {[%emt 00:00:06]} c5 {[%clk 01:30:57]}
{[%emt 00:00:19]} 3. Nf3 {[%clk 01:31:27]} {[%emt 00:00:24]} cxd4 {[%clk
01:31:16]} {[%emt 00:00:11]} 4. Nxd4 {[%clk 01:31:52]} {[%emt 00:00:05]} e5
{[%clk 01:31:33]} {[%emt 00:00:14]} 5. Nf3 {[%clk 01:30:13]} {[%emt 00:02:09]}
Bc5 {[%clk 01:30:32]} {[%emt 00:01:31]} 6. Nc3 {[%clk 01:28:01]} {[%emt
00:02:42]} Nc6 {[%clk 01:28:38]} {[%emt 00:02:24]} 7. e3 {[%clk 01:28:02]}
{[%emt 00:00:28]} O-O {[%clk 01:27:08]} {[%emt 00:02:00]} 8. Be2 {[%clk
01:28:08]} {[%emt 00:00:24]} a6 {[%clk 01:22:10]} {[%emt 00:05:29]} 9. O-O
{[%clk 01:28:20]} {[%emt 00:00:18]} e4 {[%clk 01:21:27]} {[%emt 00:01:13]} 10.
Nd4 {[%clk 01:27:16]} {[%emt 00:01:34]} d6 {[%clk 01:19:09]} {[%emt 00:02:48]}
11. a3 {[%clk 01:27:21]} {[%emt 00:00:25]} Qc7 {[%clk 01:17:04]} {[%emt
00:02:35]} 12. b4 {[%clk 01:25:58]} {[%emt 00:01:53]} Ba7 {[%clk 01:15:14]}
{[%emt 00:02:21]} 13. Bb2 {[%clk 01:23:43]} {[%emt 00:02:45]} Ne5 {[%clk
01:10:52]} {[%emt 00:04:52]} 14. Nd5 {[%clk 01:23:21]} {[%emt 00:00:51]} Nxd5
{[%clk 01:09:14]} {[%emt 00:02:08]} 15. cxd5 {[%clk 01:23:49]} {[%emt
00:00:02]} f5 {[%clk 01:06:22]} {[%emt 00:03:22]} 16. Rc1 {[%clk 00:59:42]}
{[%emt 00:24:36]} Qf7 {[%clk 01:05:55]} {[%emt 00:00:57]} 17. Ne6 {[%clk
00:56:26]} {[%emt 00:03:47]} Bxe6 {[%clk 01:02:53]} {[%emt 00:03:33]} 18. Bxe5
{[%clk 00:56:47]} {[%emt 00:00:09]} Bxd5 {[%clk 00:53:10]} {[%emt 00:10:13]} 19.
Bxd6 {[%clk 00:56:47]} {[%emt 00:00:30]} Rfd8 {[%clk 00:53:27]} {[%emt
00:00:13]} 20. Bf4 {[%clk 00:48:57]} {[%emt 00:08:19]} Rac8 {[%clk 00:52:33]}
{[%emt 00:01:25]} 21. Rxc8 {[%clk 00:47:46]} {[%emt 00:01:41]} Rxc8 {[%clk
00:52:19]} {[%emt 00:00:43]} 22. Qd2 {[%clk 00:46:49]} {[%emt 00:01:27]} Bc4
{[%clk 00:47:42]} {[%emt 00:05:07]} 23. Rc1 {[%clk 00:43:53]} {[%emt 00:03:25]}
b5 {[%clk 00:47:26]} {[%emt 00:00:47]} 24. Kf1 {[%clk 00:35:39]} {[%emt
00:08:44]} Bxe2+ {[%clk 00:42:04]} {[%emt 00:05:52]} 25. Kxe2 {[%clk 00:36:01]}
{[%emt 00:00:08]} Rxc1 {[%clk 00:42:20]} {[%emt 00:00:15]} 26. Qxc1 {[%clk
00:36:13]} {[%emt 00:00:18]} Qd7 {[%clk 00:42:27]} {[%emt 00:00:21]} 27. Qc3
{[%clk 00:28:09]} {[%emt 00:08:35]} Bb6 {[%clk 00:41:41]} {[%emt 00:01:17]} 28.
h3 {[%clk 00:25:36]} {[%emt 00:03:03]} Bd8 {[%clk 00:40:50]} {[%emt 00:01:21]}
29. Be5 {[%clk 00:25:12]} {[%emt 00:00:54]} 1/2-1/2

[Event "Klubbmästerskap 2025 Tisdag"]
[Site "Linköping, Sweden"]
[Date "2025.04.08"]
[Round "9.14"]
[White "Davidsson, Asker"]
[Black "Ahlström, Per"]
[Result "0-1"]
[TimeControl "90 min + 30 sec/move"]
[WhiteElo "1823"]
[BlackElo "1820"]

1. c4 {[%clk 01:30:55]} {[%emt 00:00:04]} e5 {[%clk 01:29:18]} {[%emt
00:01:42]} 2. Nc3 {[%clk 01:31:16]} {[%emt 00:00:09]} Nf6 {[%clk 01:29:39]}
{[%emt 00:00:09]} 3. g3 {[%clk 01:31:38]} {[%emt 00:00:08]} d5 {[%clk
01:29:14]} {[%emt 00:00:55]} 4. cxd5 {[%clk 01:32:03]} {[%emt 00:00:05]} Nxd5
{[%clk 01:29:36]} {[%emt 00:00:08]} 5. Bg2 {[%clk 01:32:25]} {[%emt 00:00:08]}
Nb6 {[%clk 01:29:12]} {[%emt 00:00:55]} 6. e3 {[%clk 01:30:52]} {[%emt
00:02:03]} Nc6 {[%clk 01:28:58]} {[%emt 00:00:42]} 7. Nge2 {[%clk 01:31:12]}
{[%emt 00:00:11]} Be7 {[%clk 01:21:17]} {[%emt 00:08:10]} 8. f4 {[%clk
01:29:41]} {[%emt 00:02:02]} O-O {[%clk 00:54:17]} {[%emt 00:27:30]} 9. fxe5
{[%clk 01:25:16]} {[%emt 00:04:56]} Nxe5 {[%clk 00:53:35]} {[%emt 00:01:11]} 10.
d4 {[%clk 01:25:34]} {[%emt 00:00:12]} Ng4 {[%clk 00:49:56]} {[%emt 00:04:09]}
11. h3 {[%clk 01:24:36]} {[%emt 00:01:28]} Nf6 {[%clk 00:50:21]} {[%emt
00:00:05]} 12. O-O {[%clk 01:24:51]} {[%emt 00:00:16]} c6 {[%clk 00:49:10]}
{[%emt 00:01:40]} 13. e4 {[%clk 01:21:30]} {[%emt 00:03:51]} h6 {[%clk
00:43:31]} {[%emt 00:06:09]} 14. Kh2 {[%clk 01:17:20]} {[%emt 00:04:41]} Re8
{[%clk 00:30:58]} {[%emt 00:13:02]} 15. Qd3 {[%clk 01:10:02]} {[%emt 00:07:48]}
a5 {[%clk 00:24:02]} {[%emt 00:07:26]} 16. Be3 {[%clk 01:08:18]} {[%emt
00:02:14]} a4 {[%clk 00:23:53]} {[%emt 00:00:39]} 17. Nf4 {[%clk 00:58:51]}
{[%emt 00:09:57]} Bf8 {[%clk 00:19:49]} {[%emt 00:04:34]} 18. e5 {[%clk
00:51:18]} {[%emt 00:08:03]} Nfd5 {[%clk 00:17:53]} {[%emt 00:02:26]} 19. Nfxd5
{[%clk 00:50:43]} {[%emt 00:01:04]} Nxd5 {[%clk 00:18:16]} {[%emt 00:00:08]} 20.
Nxd5 {[%clk 00:49:34]} {[%emt 00:01:39]} cxd5 {[%clk 00:18:39]} {[%emt
00:00:07]} 21. Rac1 {[%clk 00:46:37]} {[%emt 00:03:26]} Be6 {[%clk 00:17:23]}
{[%emt 00:01:46]} 22. Rc3 {[%clk 00:46:17]} {[%emt 00:00:51]} Bb4 {[%clk
00:16:13]} {[%emt 00:01:40]} 23. Rc2 {[%clk 00:46:07]} {[%emt 00:00:39]} Qd7
{[%clk 00:16:37]} {[%emt 00:00:06]} 24. Bd2 {[%clk 00:44:18]} {[%emt 00:02:19]}
Be7 {[%clk 00:15:52]} {[%emt 00:01:15]} 25. Bc3 {[%clk 00:39:08]} {[%emt
00:05:40]} Rec8 {[%clk 00:15:15]} {[%emt 00:01:07]} 26. g4 {[%clk 00:35:50]}
{[%emt 00:03:49]} Ra6 {[%clk 00:11:57]} {[%emt 00:03:49]} 27. Rff2 {[%clk
00:31:26]} {[%emt 00:04:53]} Rac6 {[%clk 00:09:50]} {[%emt 00:02:38]} 28. Ba5
{[%clk 00:28:55]} {[%emt 00:03:00]} Bh4 {[%clk 00:08:53]} {[%emt 00:01:26]} 29.
Rfe2 {[%clk 00:24:53]} {[%emt 00:04:33]} Bg5 {[%clk 00:08:44]} {[%emt
00:00:39]} 30. Bb4 {[%clk 00:19:55]} {[%emt 00:05:27]} Bf4+ {[%clk 00:04:53]}
{[%emt 00:04:20]} 31. Kg1 {[%clk 00:19:44]} {[%emt 00:00:42]} Rxc2 {[%clk
00:05:08]} {[%emt 00:00:16]} 32. Rxc2 {[%clk 00:20:10]} {[%emt 00:00:03]} Rxc2
{[%clk 00:05:15]} {[%emt 00:00:23]} 33. Qxc2 {[%clk 00:20:39]} {[%emt
00:00:01]} Be3+ {[%clk 00:05:34]} {[%emt 00:00:12]} 34. Kh2 {[%clk 00:19:24]}
{[%emt 00:01:44]} Bxd4 {[%clk 00:05:57]} {[%emt 00:00:08]} 35. Bc3 {[%clk
00:18:18]} {[%emt 00:01:37]} Qc6 {[%clk 00:05:47]} {[%emt 00:00:40]} 36. Qd2
{[%clk 00:18:01]} {[%emt 00:00:46]} Ba7 {[%clk 00:04:13]} {[%emt 00:02:04]} 37.
g5 {[%clk 00:18:09]} {[%emt 00:00:22]} h5 {[%clk 00:03:37]} {[%emt 00:01:06]}
38. a3 {[%clk 00:15:17]} {[%emt 00:03:22]} Qc5 {[%clk 00:03:55]} {[%emt
00:00:12]} 39. Qd1 {[%clk 00:13:42]} {[%emt 00:02:04]} d4 {[%clk 00:04:04]}
{[%emt 00:00:21]} 40. Be1 {[%clk 00:13:40]} {[%emt 00:00:32]} Qxe5+ {[%clk
00:03:53]} {[%emt 00:00:40]} 41. Bg3 {[%clk 00:14:09]} {[%emt 00:00:02]} Qe3
{[%clk 00:02:19]} {[%emt 00:02:04]} 42. Qxa4 {[%clk 00:13:06]} {[%emt
00:01:34]} d3 {[%clk 00:02:05]} {[%emt 00:00:43]} 43. Qd1 {[%clk 00:07:09]}
{[%emt 00:06:26]} d2 {[%clk 00:01:54]} {[%emt 00:00:41]} 44. b4 {[%clk
00:06:40]} {[%emt 00:01:00]} Qg1+ {[%clk 00:01:24]} {[%emt 00:01:00]} 0-1

[Event "Klubbmästerskap 2025 Tisdag"]
[Site "Linköping, Sweden"]
[Date "2025.04.08"]
[Round "9.15"]
[White "Nagy, Mate 2009"]
[Black "Skytt, Klas"]
[Result "1-0"]
[TimeControl "90 min + 30 sec/move"]
[WhiteElo "1917"]
[BlackElo "1764"]

1. e4 {[%clk 01:30:30]} Nf6 {[%clk 01:30:30]} 2. e5 {[%clk 01:30:30]} Nd5
{[%clk 01:30:30]} 3. d4 {[%clk 01:30:30]} d6 {[%clk 01:30:30]} 4. c4 {[%clk
01:30:30]} Nb6 {[%clk 01:30:30]} 5. exd6 {[%clk 01:30:30]} exd6 {[%clk
01:30:30]} 6. Nf3 {[%clk 01:30:30]} Bg4 {[%clk 01:30:30]} 7. Be2 {[%clk
01:30:30]} Be7 {[%clk 01:30:30]} 8. O-O {[%clk 01:30:30]} O-O {[%clk 01:30:30]}
9. a4 {[%clk 01:30:30]} d5 {[%clk 01:30:30]} 10. c5 {[%clk 01:30:30]} N6d7
{[%clk 01:30:30]} 11. Qb3 {[%clk 01:30:30]} Nc6 {[%clk 01:30:30]} 12. Be3
{[%clk 01:30:30]} Qc8 {[%clk 01:30:30]} 13. Nc3 {[%clk 01:30:30]} Nf6 {[%clk
01:30:30]} 14. Nxd5 {[%clk 01:30:30]} Nxd5 {[%clk 01:30:30]} 15. Qxd5 {[%clk
01:30:30]} Rd8 {[%clk 01:30:30]} 16. Qc4 {[%clk 01:30:30]} Be6 {[%clk
01:30:30]} 17. Qc3 {[%clk 01:30:30]} Bf6 {[%clk 01:30:30]} 18. Rfd1 {[%clk
01:30:30]} Ne7 {[%clk 01:30:30]} 19. Ne1 {[%clk 01:30:30]} Nd5 {[%clk
01:30:30]} 20. Qa3 {[%clk 01:30:30]} c6 {[%clk 01:30:30]} 21. Bf3 {[%clk
01:30:30]} Qc7 {[%clk 01:30:30]} 22. Nd3 {[%clk 01:30:30]} Qe7 {[%clk
01:30:30]} 23. Bxd5 {[%clk 01:30:30]} Bxd5 {[%clk 01:30:30]} 24. Qc3 {[%clk
01:30:30]} Re8 {[%clk 01:30:30]} 25. Re1 {[%clk 01:30:30]} Qd8 {[%clk
01:30:30]} 26. Bf4 {[%clk 01:30:30]} Rxe1+ {[%clk 01:30:30]} 27. Rxe1 {[%clk
01:30:30]} Bxg2 {[%clk 01:30:30]} 28. Kxg2 {[%clk 01:30:30]} Qd5+ {[%clk
01:30:30]} 29. f3 {[%clk 01:30:30]} Bxd4 {[%clk 01:30:30]} 30. Qc2 {[%clk
01:30:30]} Qf5 {[%clk 01:30:30]} 31. Qe2 {[%clk 01:30:30]} Qg6+ {[%clk
01:30:30]} 32. Bg3 {[%clk 01:30:30]} h5 {[%clk 01:30:30]} 33. Qe4 {[%clk
01:30:30]} Qf6 {[%clk 01:30:30]} 34. b4 {[%clk 01:30:30]} a6 {[%clk 01:30:30]}
35. a5 {[%clk 01:30:30]} g5 {[%clk 01:30:30]} 36. Bd6 {[%clk 01:30:30]} Kg7
{[%clk 01:30:30]} 37. Ne5 {[%clk 01:30:30]} Bc3 {[%clk 01:30:30]} 38. Re3
{[%clk 01:30:30]} Bd2 {[%clk 01:30:30]} 39. Nd7 {[%clk 01:30:30]} Qe6 {[%clk
01:30:30]} 40. Qd4+ {[%clk 01:30:30]} 1-0